bitfinex/quotes_BTCUSD_20250608
["timestamp","ask_amount","ask_price","bid_price","bid_amount"]
[1749356467119,0.01082539,105640.0,105630.0,0.6899031]
[1749356467569,0.01082539,105640.0,105630.0,0.68990311]
[1749356467772,0.01082539,105640.0,105630.0,0.68103082]
[1749356467980,0.01082539,105640.0,105630.0,0.68990311]
[1749356468187,0.0108253,105640.0,105630.0,0.68990305]
[1749356468997,0.0108253,105640.0,105630.0,0.68103082]
[1749356469813,0.0108253,105640.0,105630.0,0.68990305]
[1749356470041,0.0108253,105640.0,105630.0,0.68990306]
[1749356470247,0.00136,105640.0,105630.0,0.68103082]
[1749356470402,0.00136,105640.0,105630.0,0.69703082]
[1749356472584,0.0108253,105640.0,105630.0,0.68103082]
[1749356473122,0.00136,105640.0,105630.0,0.68103082]
[1749356473622,0.0108253,105640.0,105630.0,0.68103082]
[1749356477626,0.00136,105640.0,105630.0,0.68103082]
[1749356479579,0.01082539,105640.0,105630.0,0.68103082]
[1749356480225,0.00136,105640.0,105630.0,0.68103082]
[1749356480577,0.0108253,105640.0,105630.0,0.68103082]
[1749356481616,0.00136,105640.0,105630.0,0.68103082]
[1749356483613,0.0108253,105640.0,105630.0,0.68103082]
[1749356483821,0.00136,105640.0,105630.0,0.68103082]
[1749356502336,0.00136,105640.0,105630.0,0.68990281]
[1749356502625,0.00136,105640.0,105630.0,0.68103082]
[1749356502839,0.00136,105640.0,105630.0,0.68990281]
[1749356503829,0.00136,105640.0,105630.0,0.68103082]
[1749356504031,0.00136,105640.0,105630.0,0.68990281]
[1749356504470,0.00136,105640.0,105630.0,0.68103082]
[1749356504688,0.00136,105640.0,105630.0,0.68990281]
[1749356505631,0.00136,105640.0,105630.0,0.68103082]
[1749356505884,0.00136,105640.0,105630.0,0.68990281]
[1749356508123,0.00136,105640.0,105630.0,0.68103082]
[1749356508287,0.00136,105640.0,105630.0,0.68990281]
[1749356509337,0.00136,105640.0,105630.0,0.68103082]
[1749356509537,0.00136,105640.0,105630.0,0.68990296]
[1749356509742,0.00136,105640.0,105630.0,0.689903]
[1749356509957,0.00136,105640.0,105630.0,0.68846611]
[1749356510870,0.00136,105640.0,105630.0,0.67959391]
[1749356511074,0.00136,105640.0,105630.0,0.6884656]
[1749356511455,0.00136,105640.0,105630.0,0.67959391]
[1749356511774,0.00136,105640.0,105630.0,0.6884656]
[1749356512219,0.00136,105640.0,105630.0,0.68846562]
[1749356512652,0.00136,105640.0,105630.0,0.6884656]
[1749356512859,0.00136,105640.0,105630.0,0.67959391]
[1749356513265,0.00136,105640.0,105630.0,0.6884656]
[1749356513470,0.00136,105640.0,105630.0,0.68846559]
[1749356514265,0.00136,105640.0,105630.0,0.67959391]
[1749356514598,0.00136,105640.0,105630.0,0.68846535]
[1749356515054,0.00136,105640.0,105630.0,0.67959391]
[1749356515269,0.00136,105640.0,105630.0,0.68846535]
[1749356515770,0.00136,105640.0,105630.0,0.68846532]
[1749356516130,0.00136,105640.0,105630.0,0.67959391]
[1749356516307,0.00136,105640.0,105630.0,0.68846532]
[1749356517163,0.0108253,105640.0,105630.0,0.68846532]
[1749356517369,0.00136,105640.0,105630.0,0.68846532]
[1749356518287,0.00136,105640.0,105630.0,0.67959391]
[1749356518491,0.00136,105640.0,105630.0,0.68846532]
[1749356519456,0.00136,105640.0,105630.0,0.6884652]
[1749356519663,0.00136,105640.0,105630.0,0.68846516]
[1749356519869,0.00136,105640.0,105630.0,0.67959391]
[1749356520107,0.00136,105640.0,105630.0,0.68846517]
[1749356520321,0.00136,105640.0,105630.0,0.68846516]
[1749356521696,0.00136,105640.0,105630.0,0.67959391]
[1749356521914,0.00136,105640.0,105630.0,0.6884651]
[1749356523236,0.00136,105640.0,105630.0,0.68846507]
[1749356523435,0.00136,105640.0,105630.0,0.67959391]
[1749356523593,0.00136,105640.0,105630.0,0.68846507]
[1749356523910,0.0108253,105640.0,105630.0,0.68846507]
[1749356524134,0.00136,105640.0,105630.0,0.68846507]
[1749356524366,0.0108253,105640.0,105630.0,0.68846507]
[1749356524546,0.00136,105640.0,105630.0,0.68846507]
[1749356524751,0.01746,105640.0,105630.0,0.68846507]
[1749356525145,0.01746,105640.0,105630.0,0.67959391]
[1749356525503,0.01746,105640.0,105630.0,0.68846507]
[1749356527043,0.03266,105640.0,105630.0,0.68842507]
[1749356528361,0.03266,105640.0,105630.0,0.68842512]
[1749356528566,0.03266,105640.0,105630.0,0.67955391]
[1749356529186,0.03266,105640.0,105630.0,0.68842514]
[1749356529888,0.03266,105640.0,105630.0,0.67955391]
[1749356530090,0.03266,105640.0,105630.0,0.68842515]
[1749356530292,0.03266,105640.0,105630.0,0.67955391]
[1749356530687,0.03266,105640.0,105630.0,0.68842498]
[1749356530894,0.03266,105640.0,105630.0,0.68842493]
[1749356532029,0.03266,105640.0,105630.0,0.68842497]
[1749356532666,0.03266,105640.0,105630.0,0.67955391]
[1749356532867,0.03266,105640.0,105630.0,0.68842496]
[1749356533616,0.03266,105640.0,105630.0,0.67955391]
[1749356533815,0.03266,105640.0,105630.0,0.68842495]
[1749356534651,0.03266,105640.0,105630.0,0.67955391]
[1749356535064,0.03266,105640.0,105630.0,0.68842501]
[1749356535286,0.03266,105640.0,105630.0,0.67955391]
[1749356535491,0.03266,105640.0,105630.0,0.68842499]
[1749356536534,0.03266,105640.0,105630.0,0.68842506]
[1749356537974,0.03266,105640.0,105630.0,0.68842502]
[1749356538180,0.03266,105640.0,105630.0,0.67955391]
[1749356538390,0.03266,105640.0,105630.0,0.6884251]
[1749356538589,0.03266,105640.0,105630.0,0.68842511]
[1749356538996,0.03266,105640.0,105630.0,0.67955391]
[1749356539207,0.03266,105640.0,105630.0,0.68842511]
[1749356540067,0.03266,105640.0,105630.0,0.68842355]
[1749356540291,0.03266,105640.0,105630.0,0.68842271]
[1749356541248,0.05159105,105640.0,105630.0,0.40266271]
[1749356541459,0.0421253,105640.0,105630.0,0.67951391]
[1749356541603,0.0421253,105640.0,105630.0,0.68838188]
[1749356541802,0.05159078,105640.0,105630.0,0.67951391]
[1749356542110,0.0421253,105640.0,105630.0,0.68838194]
[1749356542347,0.05159087,105640.0,105630.0,0.68838194]
[1749356542522,0.05159087,105640.0,105630.0,0.68838195]
[1749356542719,0.0421253,105640.0,105630.0,0.68838195]
[1749356542925,0.05159078,105640.0,105630.0,0.68838195]
[1749356543106,0.05159069,105640.0,105630.0,0.68838191]
[1749356543306,0.05159069,105640.0,105630.0,0.68838193]
[1749356543511,0.06105617,105640.0,105630.0,0.68838192]
[1749356544541,0.06105617,105640.0,105630.0,0.68838191]
[1749356544877,0.06105617,105640.0,105630.0,0.67951391]
[1749356545076,0.06105617,105640.0,105630.0,0.68838194]
[1749356545509,0.05159069,105640.0,105630.0,0.69724997]
[1749356546227,0.06105617,105640.0,105630.0,0.69724997]
[1749356546433,0.06105617,105640.0,105630.0,0.69725005]
[1749356546551,0.06105617,105640.0,105630.0,0.68838194]
[1749356546757,0.06105617,105640.0,105630.0,0.69725006]
[1749356546952,0.05159069,105640.0,105630.0,0.68838194]
[1749356547207,0.05159069,105640.0,105630.0,0.69725044]
[1749356547640,0.06105626,105640.0,105630.0,0.69725044]
[1749356547837,0.06105617,105640.0,105630.0,0.69725044]
[1749356548059,0.07052183,105640.0,105630.0,0.69725044]
[1749356548222,0.05159069,105640.0,105630.0,0.69725044]
[1749356548420,0.05159069,105640.0,105630.0,0.68838194]
[1749356548632,0.05159069,105640.0,105630.0,0.69725068]
[1749356548829,0.05159069,105640.0,105630.0,0.68838194]
[1749356549236,0.05159069,105640.0,105630.0,0.69725069]
[1749356550318,0.05159069,105640.0,105630.0,0.68838194]
[1749356550719,0.05159069,105640.0,105630.0,0.69725076]
[1749356551676,0.05159069,105640.0,105630.0,0.68838194]
[1749356551844,0.05159069,105640.0,105630.0,0.6972508]
[1749356552247,0.05159069,105640.0,105630.0,0.68838194]
[1749356552839,0.05159069,105640.0,105630.0,0.69725088]
[1749356553918,0.06105617,105640.0,105630.0,0.69725088]
[1749356554314,0.05159069,105640.0,105630.0,0.6972509]
[1749356554511,0.05159069,105640.0,105630.0,0.68838194]
[1749356554698,0.05159069,105640.0,105630.0,0.69725105]
[1749356554881,0.05159069,105640.0,105630.0,0.69725111]
[1749356555528,0.05159069,105640.0,105630.0,0.68838194]
[1749356555705,0.05159069,105640.0,105630.0,0.69725126]
[1749356556330,0.05159069,105640.0,105630.0,0.68838194]
[1749356556467,0.05159069,105640.0,105630.0,0.69725126]
[1749356557450,0.05159069,105640.0,105630.0,0.68838194]
[1749356557614,0.05159069,105640.0,105630.0,0.69725129]
[1749356557789,0.05159069,105640.0,105630.0,0.68838194]
[1749356558202,0.05159069,105640.0,105630.0,0.69725166]
[1749356558399,0.06105617,105640.0,105630.0,0.69725168]
[1749356559506,0.05159069,105640.0,105630.0,0.69725168]
[1749356560284,0.05159069,105640.0,105630.0,0.69725169]
[1749356560979,0.05159069,105640.0,105630.0,0.68838194]
[1749356561119,0.05159069,105640.0,105630.0,0.69725168]
[1749356561663,0.05159069,105640.0,105630.0,0.68838194]
[1749356561876,0.05159069,105640.0,105630.0,0.69725168]
[1749356562078,0.05159069,105640.0,105630.0,0.68838194]
[1749356562310,0.05159069,105640.0,105630.0,0.69725167]
[1749356563123,0.05159069,105640.0,105630.0,0.68838194]
[1749356563770,0.05159069,105640.0,105630.0,0.69725182]
[1749356564385,0.03266,105640.0,105630.0,0.68838194]
[1749356564592,0.02692539,105640.0,105630.0,0.68838194]
[1749356564819,0.02692539,105640.0,105630.0,0.69725183]
[1749356565219,0.02692539,105640.0,105630.0,0.69725182]
[1749356566667,0.02692539,105640.0,105630.0,0.69725185]
[1749356566894,0.02692539,105640.0,105630.0,0.68838194]
[1749356567359,0.02692539,105640.0,105630.0,0.69725184]
[1749356567699,0.02692539,105640.0,105630.0,0.68838194]
[1749356567921,0.02692539,105640.0,105630.0,0.69725185]
[1749356568174,0.02692539,105640.0,105630.0,0.68838194]
[1749356568425,0.02692539,105640.0,105630.0,0.69725187]
[1749356568691,0.02692539,105640.0,105630.0,0.68838194]
[1749356568926,0.02692539,105640.0,105630.0,0.69725187]
[1749356569745,0.02692539,105640.0,105630.0,0.69725188]
[1749356569990,0.02692539,105640.0,105630.0,0.69725192]
[1749356570185,0.02692539,105640.0,105630.0,0.68838194]
[1749356570506,0.02692539,105640.0,105630.0,0.69725192]
[1749356570770,0.02692539,105640.0,105630.0,0.69725199]
[1749356571639,0.02692539,105640.0,105630.0,0.69725197]
[1749356572048,0.02692539,105640.0,105630.0,0.68838194]
[1749356572248,0.02692539,105640.0,105630.0,0.69725197]
[1749356572654,0.0269253,105640.0,105630.0,0.69725197]
[1749356573197,0.0269253,105640.0,105630.0,0.69725194]
[1749356573639,0.0269253,105640.0,105630.0,0.68838194]
[1749356573857,0.0269253,105640.0,105630.0,0.40266194]
[1749356574059,0.0269253,105640.0,105630.0,0.68834194]
[1749356574462,0.0269253,105640.0,105630.0,0.69577599]
[1749356574885,0.03639078,105640.0,105630.0,0.68690598]
[1749356575090,0.03639078,105640.0,105630.0,0.69577599]
[1749356575499,0.03639078,105640.0,105630.0,0.68690598]
[1749356575702,0.03639078,105640.0,105630.0,0.69577599]
[1749356576048,0.0269253,105640.0,105630.0,0.69577599]
[1749356576228,0.03639069,105640.0,105630.0,0.69577599]
[1749356576954,0.03639069,105640.0,105630.0,0.68690598]
[1749356577318,0.03639069,105640.0,105630.0,0.69577598]
[1749356577542,0.03639069,105640.0,105630.0,0.68690598]
[1749356577720,0.03639069,105640.0,105630.0,0.69577598]
[1749356578648,0.03639069,105640.0,105630.0,0.68690598]
[1749356578862,0.03639069,105640.0,105630.0,0.69577598]
[1749356579209,0.03639069,105640.0,105630.0,0.68690598]
[1749356579416,0.03639069,105640.0,105630.0,0.69577598]
[1749356580607,0.03639069,105640.0,105630.0,0.68690598]
[1749356580854,0.03639069,105640.0,105630.0,0.69577597]
[1749356581065,0.03639069,105640.0,105630.0,0.68690598]
[1749356581278,0.03639069,105640.0,105630.0,0.69577597]
[1749356582927,0.03639069,105640.0,105630.0,0.68690598]
[1749356583145,0.03639069,105640.0,105630.0,0.69577597]
[1749356584649,0.0269253,105640.0,105630.0,0.69577597]
[1749356586397,0.0269253,105640.0,105630.0,0.68690598]
[1749356586601,0.0269253,105640.0,105630.0,0.69577598]
[1749356587190,0.03639069,105640.0,105630.0,0.69577598]
[1749356587393,0.03639069,105640.0,105630.0,0.68690598]
[1749356587801,0.03639069,105640.0,105630.0,0.69577599]
[1749356589392,0.03639069,105640.0,105630.0,0.69577602]
[1749356589821,0.03639069,105640.0,105630.0,0.68690598]
[1749356590256,0.03639069,105640.0,105630.0,0.69577602]
[1749356590460,0.03639069,105640.0,105630.0,0.40122598]
[1749356590661,0.05139069,105640.0,105630.0,0.69577602]
[1749356590861,0.0419253,105640.0,105630.0,0.68690598]
[1749356591078,0.05139078,105640.0,105630.0,0.68690598]
[1749356591297,0.05139078,105640.0,105630.0,0.69577603]
[1749356592279,0.05139078,105640.0,105630.0,0.68690598]
[1749356592972,0.0419253,105640.0,105630.0,0.68690598]
[1749356593395,0.0419253,105640.0,105630.0,0.69577603]
[1749356593825,0.05139069,105640.0,105630.0,0.69577603]
[1749356594245,0.05139069,105640.0,105630.0,0.69577597]
[1749356594438,0.06085626,105640.0,105630.0,0.69577597]
[1749356594644,0.05139069,105640.0,105630.0,0.69577597]
[1749356594923,0.0419253,105640.0,105630.0,0.69577618]
[1749356595140,0.05103078,105640.0,105630.0,0.69577618]
[1749356595684,0.05003078,105640.0,105630.0,0.69577618]
[1749356595920,0.05003078,105640.0,105630.0,0.69577655]
[1749356596130,0.05003069,105640.0,105630.0,0.69577655]
[1749356596280,0.05003069,105640.0,105630.0,0.68690598]
[1749356596513,0.05003069,105640.0,105630.0,0.69577657]
[1749356597253,0.05003069,105640.0,105630.0,0.6957766]
[1749356597809,0.05003069,105640.0,105630.0,0.68690598]
[1749356598014,0.05003069,105640.0,105630.0,0.69577685]
[1749356598215,0.05003069,105640.0,105630.0,0.6957768]
[1749356598426,0.05003069,105640.0,105630.0,0.68690598]
[1749356598644,0.05003069,105640.0,105630.0,0.69577675]
[1749356599309,0.05949626,105640.0,105630.0,0.41009675]
[1749356599531,0.24881974,105640.0,105630.0,0.67084583]
[1749356599743,0.24881974,105640.0,105630.0,0.61406683]
[1749356600171,0.24881974,105640.0,105630.0,0.67970168]
[1749356600388,0.24881974,105640.0,105630.0,0.68916823]
[1749356601269,0.24881974,105640.0,105630.0,0.68916131]
[1749356601469,0.24881974,105640.0,105630.0,0.68916135]
[1749356601676,0.24881974,105640.0,105630.0,0.68029539]
[1749356601890,0.24881974,105640.0,105630.0,0.68916134]
[1749356602580,0.24881974,105640.0,105630.0,0.68916096]
[1749356603205,0.24881974,105640.0,105630.0,0.68029539]
[1749356603623,0.24881974,105640.0,105630.0,0.68916098]
[1749356603839,0.24881974,105640.0,105630.0,0.68916097]
[1749356604017,0.24881974,105640.0,105630.0,0.68916094]
[1749356604614,0.24881974,105640.0,105630.0,0.68915905]
[1749356604826,0.05949752,105640.0,105630.0,0.69862554]
[1749356605018,0.05949752,105640.0,105630.0,0.68976185]
[1749356605203,0.05949752,105640.0,105630.0,0.69862548]
[1749356605418,0.05949752,105640.0,105630.0,0.68976185]
[1749356605600,0.05949752,105640.0,105630.0,0.69862551]
[1749356606240,0.05949752,105640.0,105630.0,0.68976185]
[1749356606435,0.05949752,105640.0,105630.0,0.69862506]
[1749356606888,0.05949752,105640.0,105630.0,0.69862504]
[1749356607038,0.05949752,105640.0,105630.0,0.69862507]
[1749356607245,0.24881974,105640.0,105630.0,0.68029539]
[1749356607449,0.24881974,105640.0,105630.0,0.68915861]
[1749356608292,0.24881974,105640.0,105630.0,0.68029539]
[1749356608490,0.24881974,105640.0,105630.0,0.67969077]
[1749356608693,0.24881974,105640.0,105630.0,0.67082884]
[1749356608964,0.24881974,105640.0,105630.0,0.67969077]
[1749356609171,0.24881974,105640.0,105630.0,0.67969079]
[1749356609374,0.24881974,105640.0,105630.0,0.68915733]
[1749356609710,0.05949752,105640.0,105630.0,0.68915733]
[1749356610157,0.05949752,105640.0,105630.0,0.68915697]
[1749356610354,0.05949752,105640.0,105630.0,0.68915695]
[1749356610529,0.05949752,105640.0,105630.0,0.68915697]
[1749356610734,0.05949752,105640.0,105630.0,0.68976185]
[1749356610937,0.05949752,105640.0,105630.0,0.69862313]
[1749356612233,0.05949752,105640.0,105630.0,0.68976185]
[1749356612787,0.05949752,105640.0,105630.0,0.69862314]
[1749356613046,0.05949752,105640.0,105630.0,0.69862313]
[1749356613940,0.05949752,105640.0,105630.0,0.69862314]
[1749356614148,0.05949752,105640.0,105630.0,0.68976185]
[1749356614325,0.05949752,105640.0,105630.0,0.69862312]
[1749356614526,0.05949752,105640.0,105630.0,0.68976185]
[1749356614733,0.24881974,105640.0,105630.0,0.68915666]
[1749356614937,0.24881974,105640.0,105630.0,0.69862348]
[1749356615347,0.24881974,105640.0,105630.0,0.35668894]
[1749356615348,0.23935417,105640.0,105630.0,0.35668894]
[1749356615554,0.23935417,105640.0,105630.0,0.38448436]
[1749356615776,0.23935417,105640.0,105630.0,0.36615594]
[1749356615979,0.23935417,105640.0,105630.0,0.37501743]
[1749356616181,0.22988833,105640.0,105630.0,0.36615594]
[1749356616387,0.22988833,105640.0,105630.0,0.37501743]
[1749356616567,0.22988833,105640.0,105630.0,0.36615594]
[1749356621037,0.22988833,105640.0,105630.0,0.56496299]
[1749356623618,0.22988833,105640.0,105630.0,0.27928299]
[1749356623823,0.22988833,105640.0,105630.0,0.56496299]
[1749356624173,0.22988833,105640.0,105630.0,0.55549608]
[1749356624372,0.22988833,105640.0,105630.0,0.36615594]
[1749356624603,0.22042222,105640.0,105630.0,0.36615594]
[1749356624816,0.22042222,105640.0,105630.0,0.35668894]
[1749356627974,0.22042222,105640.0,105630.0,0.07100894]
[1749356628178,0.22042222,105640.0,105630.0,0.3945297]
[1749356635193,0.22042222,105640.0,105630.0,0.34663552]
[1749356635369,0.22042222,105640.0,105630.0,0.33776769]
[1749356635616,0.22042222,105640.0,105630.0,0.34663566]
[1749356635796,0.22042222,105640.0,105630.0,0.34663564]
[1749356636180,0.22042222,105640.0,105630.0,0.33776769]
[1749356636376,0.22042222,105640.0,105630.0,0.34663454]
[1749356636770,0.22042222,105640.0,105630.0,0.33776769]
[1749356637190,0.22042222,105640.0,105630.0,0.34663455]
[1749356637434,0.22042222,105640.0,105630.0,0.33776769]
[1749356637610,0.22042222,105640.0,105630.0,0.34663455]
[1749356638172,0.22042222,105640.0,105630.0,0.34663383]
[1749356638798,0.22042222,105640.0,105630.0,0.34663379]
[1749356639216,0.22042222,105640.0,105630.0,0.34663378]
[1749356639635,0.22042222,105640.0,105630.0,0.34663379]
[1749356640069,0.22042222,105640.0,105630.0,0.34663377]
[1749356640280,0.22042222,105640.0,105630.0,0.33757447]
[1749356640486,0.22042222,105640.0,105630.0,0.34644055]
[1749356640913,0.22042222,105640.0,105630.0,0.34644054]
[1749356641119,0.22042222,105640.0,105630.0,0.33757447]
[1749356641328,0.22042222,105640.0,105630.0,0.34644054]
[1749356641764,0.22042222,105640.0,105630.0,0.33757447]
[1749356642000,0.30702222,105640.0,105630.0,0.34644036]
[1749356642638,0.30702222,105640.0,105630.0,0.34644035]
[1749356643057,0.30702222,105640.0,105630.0,0.34644028]
[1749356643282,0.30702222,105640.0,105630.0,0.33757447]
[1749356643490,0.30702222,105640.0,105630.0,0.34644029]
[1749356643694,0.30702222,105640.0,105630.0,0.3464403]
[1749356643899,0.30702222,105640.0,105630.0,0.33757447]
[1749356644110,0.30702222,105640.0,105630.0,0.3464403]
[1749356644320,0.30702222,105640.0,105630.0,0.33757447]
[1749356644717,0.30702222,105640.0,105630.0,0.0607603]
[1749356644895,0.30702222,105640.0,105630.0,0.34644063]
[1749356645098,0.30702222,105640.0,105630.0,0.33757447]
[1749356645302,0.30702222,105640.0,105630.0,0.34644064]
[1749356645499,0.30702222,105640.0,105630.0,0.3464407]
[1749356646164,0.30702222,105640.0,105630.0,0.33757447]
[1749356646370,0.30702222,105640.0,105630.0,0.3464407]
[1749356646574,0.30702222,105640.0,105630.0,0.33757447]
[1749356646984,0.30702222,105640.0,105630.0,0.34644128]
[1749356647192,0.30702222,105640.0,105630.0,0.33757447]
[1749356647393,0.30702222,105640.0,105630.0,0.34644131]
[1749356647602,0.30702222,105640.0,105630.0,0.33757447]
[1749356648007,0.30702222,105640.0,105630.0,0.34644129]
[1749356648839,0.30702222,105640.0,105630.0,0.34644139]
[1749356649438,0.30702222,105640.0,105630.0,0.3464414]
[1749356650282,0.30702222,105640.0,105630.0,0.34644262]
[1749356650494,0.30702222,105640.0,105630.0,0.34644276]
[1749356650692,0.30702222,105640.0,105630.0,0.33757447]
[1749356651062,0.30702222,105640.0,105630.0,0.40320477]
[1749356651286,0.30702222,105640.0,105630.0,0.39433648]
[1749356651483,0.30702222,105640.0,105630.0,0.40320477]
[1749356652621,0.30702222,105640.0,105630.0,0.39433648]
[1749356652842,0.30702222,105640.0,105630.0,0.40320477]
[1749356653050,0.30702222,105640.0,105630.0,0.39433648]
[1749356653503,0.30702222,105640.0,105630.0,0.40320477]
[1749356654103,0.30702222,105640.0,105630.0,0.40320526]
[1749356654740,0.30702222,105640.0,105630.0,0.39433648]
[1749356655093,0.30702222,105640.0,105630.0,0.4032055]
[1749356655919,0.30702222,105640.0,105630.0,0.40320661]
[1749356656149,0.30702222,105640.0,105630.0,0.39433648]
[1749356656562,0.30702222,105640.0,105630.0,0.40320661]
[1749356657761,0.30702222,105640.0,105630.0,0.40320988]
[1749356657973,0.30702222,105640.0,105630.0,0.39433648]
[1749356658214,0.30702222,105640.0,105630.0,0.40320989]
[1749356658630,0.30702222,105640.0,105630.0,0.40320988]
[1749356659783,0.30702222,105640.0,105630.0,0.39433648]
[1749356660344,0.30702222,105640.0,105630.0,0.40321004]
[1749356660550,0.30702222,105640.0,105630.0,0.39433648]
[1749356660752,0.30702222,105640.0,105630.0,0.40320979]
[1749356661339,0.30702222,105640.0,105630.0,0.40320872]
[1749356661770,0.30702222,105640.0,105630.0,0.39433648]
[1749356661992,0.30702222,105640.0,105630.0,0.40320867]
[1749356663436,0.30702222,105640.0,105630.0,0.40320935]
[1749356663590,0.30702222,105640.0,105630.0,0.39433648]
[1749356663785,0.30702222,105640.0,105630.0,0.40320936]
[1749356664053,0.30702222,105640.0,105630.0,0.39433648]
[1749356664262,0.30702222,105640.0,105630.0,0.40320935]
[1749356667096,0.30702222,105640.0,105630.0,0.39433648]
[1749356667580,0.30702222,105640.0,105630.0,0.40320908]
[1749356667756,0.30702222,105640.0,105630.0,0.11752908]
[1749356667965,0.64702222,105640.0,105630.0,0.07931085]
[1749356668142,0.64702222,105640.0,105630.0,0.05095102]
[1749356668345,0.64702222,105640.0,105630.0,0.02254177]
[1749356668546,0.64702222,105640.0,105630.0,0.01367481]
[1749356668786,0.64702222,105640.0,105630.0,0.02254231]
[1749356669011,0.64702222,105640.0,105630.0,0.01367428]
[1749356669373,0.64702222,105640.0,105630.0,0.01367464]
[1749356669374,0.73470014,105640.0,105630.0,0.01367464]
[1749356669583,0.73470014,105640.0,105630.0,0.01367465]
[1749356669791,0.73570014,105640.0,105630.0,0.01367465]
[1749356669943,0.64902222,105640.0,105630.0,0.00480678]
[1749356689560,1.14026222,105640.0,105630.0,0.00480678]
[1749356694048,1.2366617,105640.0,105630.0,0.00480678]
[1749356694253,1.2651157,105640.0,105630.0,0.00480678]
[1749356753532,1.2501157,105640.0,105630.0,0.00480678]
[1749356763702,1.1474157,105640.0,105630.0,0.00480678]
[1749356763903,1.13761622,105640.0,105630.0,0.04468396]
[1749356764111,1.13761622,105640.0,105630.0,0.03580678]
[1749356764327,1.13761622,105640.0,105630.0,0.04468359]
[1749356764532,1.13761622,105640.0,105630.0,0.04468325]
[1749356764724,1.13761622,105640.0,105630.0,0.04468323]
[1749356765154,1.13761622,105640.0,105630.0,0.03618568]
[1749356765357,1.10916222,105640.0,105630.0,0.03618568]
[1749356766390,1.10916222,105640.0,105630.0,0.23499282]
[1749356766610,1.10916222,105640.0,105630.0,0.04565268]
[1749356766810,1.10916222,105640.0,105630.0,0.04505034]
[1749356767023,1.10916222,105640.0,105630.0,0.33077024]
[1749356767233,1.10916222,105640.0,105630.0,0.33077025]
[1749356767434,1.10916222,105640.0,105630.0,0.32190568]
[1749356767891,1.10916222,105640.0,105630.0,0.33076984]
[1749356768500,1.10916222,105640.0,105630.0,0.33076564]
[1749356768781,1.10916222,105640.0,105630.0,0.32190568]
[1749356769506,1.10916222,105640.0,105630.0,0.33076563]
[1749356769750,1.10916222,105640.0,105630.0,0.32190568]
[1749356787429,1.10916222,105640.0,105630.0,0.30660568]
[1749356787612,1.10916222,105640.0,105630.0,0.30656568]
[1749356792795,0.61792222,105640.0,105630.0,0.30656568]
[1749356793934,0.61792222,105640.0,105630.0,0.33496786]
[1749356800918,0.61792222,105640.0,105630.0,0.31926786]
[1749356807577,0.61788222,105640.0,105630.0,0.31926786]
[1749356807811,0.61788222,105640.0,105630.0,0.33436786]
[1749356819889,0.61788222,105640.0,105630.0,0.31926786]
[1749356821012,0.61788222,105640.0,105630.0,0.33436786]
[1749356822724,0.61788222,105640.0,105630.0,0.523708]
[1749356822918,0.61788222,105640.0,105630.0,0.33436786]
[1749356830127,0.61788222,105640.0,105630.0,0.31926786]
[1749356831951,0.61788222,105640.0,105630.0,0.33476786]
[1749356835828,0.61788222,105640.0,105630.0,0.31926786]
[1749356839537,0.61788222,105640.0,105630.0,0.33476786]
[1749356842234,0.61788222,105640.0,105630.0,0.30636568]
[1749356843031,0.61788222,105640.0,105630.0,0.49570582]
[1749356843296,0.61788222,105640.0,105630.0,0.30636568]
[1749356843473,0.61788222,105640.0,105630.0,0.33476712]
[1749356844083,0.61788222,105640.0,105630.0,0.30636568]
[1749356844535,0.61788222,105640.0,105630.0,0.31926818]
[1749356845162,0.61788222,105640.0,105630.0,0.29086568]
[1749356845784,0.61788222,105640.0,105630.0,0.31926829]
[1749356862408,0.61788222,105640.0,105630.0,0.50860843]
[1749356862621,0.61788222,105640.0,105630.0,0.31926829]
[1749356867482,0.63348222,105640.0,105630.0,0.31926829]
[1749356880701,0.63348222,105640.0,105630.0,0.31926711]
[1749356898980,0.63148222,105640.0,105630.0,0.31926711]
[1749356935174,0.63148222,105640.0,105630.0,0.03358711]
[1749356935398,0.63148222,105640.0,105630.0,0.31914711]
[1749356953279,0.61588222,105640.0,105630.0,0.31914711]
[1749356960314,0.63248222,105640.0,105630.0,0.31914711]
[1749356965761,0.54592222,105640.0,105630.0,0.31914711]
[1749356965968,0.63244222,105640.0,105630.0,0.31914711]
[1749356991031,0.63212866,105640.0,105630.0,0.31914711]
[1749356993406,0.63212866,105640.0,105630.0,0.32802713]
[1749356993620,0.63212866,105640.0,105630.0,0.31914711]
[1749356993792,0.63212866,105640.0,105630.0,0.32802713]
[1749356995900,0.54560866,105640.0,105630.0,0.32802713]
[1749356996092,0.63208866,105640.0,105630.0,0.32802713]
[1749356997171,0.63208866,105640.0,105630.0,0.31914711]
[1749356997749,0.63208866,105640.0,105630.0,0.32802713]
[1749356998745,0.63208866,105640.0,105630.0,0.31914711]
[1749356998919,0.63208866,105640.0,105630.0,0.32802713]
[1749356999306,0.63208866,105640.0,105630.0,0.31914711]
[1749356999495,0.63208866,105640.0,105630.0,0.32802713]
[1749357001046,0.63208866,105640.0,105630.0,0.31914711]
[1749357001221,0.63208866,105640.0,105630.0,0.32802713]
[1749357002401,0.63208866,105640.0,105630.0,0.31914711]
[1749357002706,0.63208866,105640.0,105630.0,0.32802713]
[1749357002884,0.63208866,105640.0,105630.0,0.31914711]
[1749357003088,0.63208866,105640.0,105630.0,0.32802713]
[1749357003316,0.63208866,105640.0,105630.0,0.32804176]
[1749357004277,0.63208866,105640.0,105630.0,0.31916174]
[1749357004894,0.63208866,105640.0,105630.0,0.32804176]
[1749357006064,0.63208866,105640.0,105630.0,0.31916174]
[1749357006277,0.63208866,105640.0,105630.0,0.32803955]
[1749357008019,0.63208866,105640.0,105630.0,0.32803897]
[1749357008229,0.63208866,105640.0,105630.0,0.32803902]
[1749357009267,0.63208866,105640.0,105630.0,0.32803904]
[1749357009481,0.63208866,105640.0,105630.0,0.31916174]
[1749357009747,0.63208866,105640.0,105630.0,0.32803903]
[1749357009896,0.61548866,105640.0,105630.0,0.32803903]
[1749357010116,0.61548866,105640.0,105630.0,0.31916174]
[1749357010505,0.61548866,105640.0,105630.0,0.32803898]
[1749357011580,0.61548866,105640.0,105630.0,0.31916174]
[1749357012036,0.61548866,105640.0,105630.0,0.32803898]
[1749357018305,0.61548866,105640.0,105630.0,0.31916174]
[1749357018513,0.74244196,105650.0,105630.0,0.94761947]
[1749357018732,1.02255385,105650.0,105640.0,0.0003789]
[1749357018934,1.10903385,105650.0,105640.0,0.0003789]
[1749357019155,1.10903385,105650.0,105640.0,0.02879496]
[1749357019756,1.11003385,105650.0,105640.0,0.0003789]
[1749357019968,1.11203385,105650.0,105640.0,0.0003789]
[1749357020221,1.11103385,105650.0,105640.0,0.0003789]
[1749357020429,1.11103385,105650.0,105640.0,0.02879496]
[1749357020636,1.11203385,105650.0,105640.0,0.02879496]
[1749357024627,1.11203385,105650.0,105640.0,0.0003789]
[1749357028824,1.11203385,105650.0,105640.0,0.0163789]
[1749357029221,1.11203385,105650.0,105640.0,0.0003789]
[1749357030587,1.11199385,105650.0,105640.0,0.0003789]
[1749357040076,1.11199385,105650.0,105640.0,0.0165789]